[Event "Western Asian Girls Chess-ch 2023"]
[Site "Colombo"]
[Date "2023.11.30"]
[Round "1.1"]
[White "Rathnayake, R M Dulinma Hemalni"]
[Black "Sultanbek, Zeinep"]
[Result "0-1"]
[ECO "B90"]
[WhiteElo "1532"]
[BlackElo "2008"]
[Annotator "NA RC"]
[PlyCount "66"]
[EventDate "2023.11.30"]
[EventCountry "SRI"]
[SourceTitle "playchess.com"]
[Source "ChessBase"]
[SourceQuality "1"]
[TimeControl "5400+30"]

1. e4 {[%emt 0:00:06]} c5 {[%emt 0:03:23]} 2. Nf3 {[%emt 0:00:08]} d6 {[%emt 0:00:12]} 3. d4 {[%emt 0:00:06]} cxd4 {[%emt 0:00:04]} 4. Nxd4 {[%emt 0:00:06]} Nf6 {[%emt 1:28:51]} 5. Nc3 {[%emt 0:00:06]} a6 {[%emt 0:00:00]} 6. Be3 {[%emt 0:00:06]} e5 {[%emt 0:00:00]} 7. Nb3 {[%emt 0:00:03]} Be6 {[%emt 0:00:00]} 8. f3 {[%emt 0:00:04]} h5 {[%emt 0:00:00]} 9. Qd2 {[%emt 0:01:39]} Nbd7 {[%emt 0:00:00]} 10. O-O-O {[%emt 0:02:04]} Be7 {[%emt 0:00:00]} 11. f4 {[%emt 0:03:23]} Ng4 {[%emt 0:00:00]} 12. Kb1 {[%emt 0:01:09]} Nxe3 {[%emt 0:00:00]} 13. Qxe3 {[%emt 0:00:12]} b5 {[%emt 0:00:00]} 14. f5 {[%emt 0:05:07]} Bxb3 {[%emt 0:00:00]} 15. axb3 {[%emt 0:01:01]} Nf6 {[%emt 0:00:00]} 16. Nd5 {[%emt 0:02:02]} Rc8 {[%emt 0:00:00]} 17. Nxf6+ {[%emt 0:10:13]} Bxf6 {[%emt 0:00:00]} 18. Be2 {[%emt 0:01:27]} h4 {[%emt 0:00:00]} 19. g4 {[%emt 0:06:12]} Bg5 {[%emt 0:00:00]} 20. Qa7 {[%emt 0:05:20]} Rc6 {[%emt 0:00:00]} 21. Qb7 {[%emt 0:00:54]} Rb6 {[%emt 0:00:00]} 22. Qd5 {[%emt 0:00:14]} O-O {[%emt 0:00:00]} 23. c4 {[%emt 0:02:07]} bxc4 {[%emt 0:00:00]} 24. Bxc4 {[%emt 0:00:10]} Qe7 {[%emt 0:00:00]} 25. Kc2 {[%emt 0:02:00]} Rc8 {[%emt 0:00:00]} 26. Ra1 {[%emt 0:00:31]} Rb5 {[%emt 0:00:00]} 27. Qd3 {[%emt 0:01:08]} d5 {[%emt 0:00:00]} 28. exd5 {[%emt 0:04:28]} e4 {[%emt 0:00:00]} 29. Qd4 {[%emt 0:02:28]} Bf6 {[%emt 0:00:00]} 30. d6 {[%emt 0:00:15]} Qb7 {[%emt 0:00:00]} 31. Qe3 {[%emt 0:02:58]} Rxc4+ {[%emt 0:00:00]} 32. bxc4 {[%emt 0:00:18]} Rxb2+ {[%emt 0:00:00]} 33. Kd1 {[%emt 0:06:38]} Rb3 {[%emt 0:00:00]} 0-1

[Event "Western Asian Girls Chess-ch 2023"]
[Site "Colombo"]
[Date "2023.11.30"]
[Round "1.2"]
[White "Bayrambayeva, Ogulsuray"]
[Black "Newansa, M Esandi"]
[Result "1/2-1/2"]
[ECO "D11"]
[WhiteElo "1909"]
[BlackElo "1531"]
[Annotator "NA RC"]
[PlyCount "82"]
[EventDate "2023.11.30"]
[EventCountry "SRI"]
[SourceTitle "playchess.com"]
[Source "ChessBase"]
[SourceQuality "1"]
[TimeControl "5400+30"]

1. d4 {[%emt 0:00:01]} d5 {[%emt 0:09:47]} 2. c4 {[%emt 0:00:16]} c6 {[%emt 0:00:06]} 3. Nf3 {[%emt 0:01:10]} Nf6 {[%emt 0:00:08]} 4. g3 {[%emt 0:00:58]} Bf5 {[%emt 0:00:21]} 5. Bg2 {[%emt 0:00:23]} e6 {[%emt 0:00:22]} 6. O-O {[%emt 0:00:31]} h6 {[%emt 0:00:11]} 7. b3 {[%emt 1:30:41]} Nbd7 {[%emt 0:00:15]} 8. Bb2 {[%emt 0:00:00]} Bd6 {[%emt 0:00:41]} 9. Nbd2 {[%emt 0:00:00]} O-O {[%emt 0:03:24]} 10. Rc1 {[%emt 0:00:00]} Qe7 {[%emt 0:00:33]} 11. Ne5 {[%emt 0:00:00]} Ba3 {[%emt 0:02:40]} 12. Bxa3 {[%emt 0:00:00]} Qxa3 {[%emt 0:00:12]} 13. Nxd7 {[%emt 0:00:00]} Nxd7 {[%emt 0:00:06]} 14. Ra1 {[%emt 0:00:00]} Nf6 {[%emt 0:03:16]} 15. Qc1 {[%emt 0:00:00]} Qe7 {[%emt 0:04:24]} 16. Nf3 {[%emt 0:00:00]} Rfd8 {[%emt 0:00:39]} 17. Rd1 {[%emt 0:00:00]} Rac8 {[%emt 0:01:04]} 18. Ne5 {[%emt 0:00:00]} Nd7 {[%emt 0:11:34]} 19. Nxd7 {[%emt 0:00:00]} Rxd7 {[%emt 0:01:51]} 20. Qb2 {[%emt 0:00:00]} Rcd8 {[%emt 0:00:56]} 21. Rac1 {[%emt 0:00:00]} Qf6 {[%emt 0:01:44]} 22. cxd5 {[%emt 0:00:00]} exd5 {[%emt 0:00:15]} 23. b4 {[%emt 0:00:00]} Re7 {[%emt 0:04:24]} 24. e3 {[%emt 0:00:00]} a6 {[%emt 0:06:34]} 25. a4 {[%emt 0:00:00]} Bd7 {[%emt 0:03:31]} 26. Rc5 {[%emt 0:00:00]} Qd6 {[%emt 0:02:38]} 27. Bf1 {[%emt 0:00:00]} Rb8 {[%emt 0:03:10]} 28. b5 {[%emt 0:00:00]} axb5 {[%emt 0:10:15]} 29. axb5 {[%emt 0:00:00]} h5 {[%emt 0:02:59]} 30. h4 {[%emt 0:00:00]} Rbe8 {[%emt 0:02:19]} 31. Rc3 {[%emt 0:00:00]} Qf6 {[%emt 0:01:03]} 32. bxc6 {[%emt 0:00:00]} bxc6 {[%emt 0:00:15]} 33. Kh2 {[%emt 0:00:00]} Re4 {[%emt 0:04:15]} 34. Bg2 {[%emt 0:00:00]} Rg4 {[%emt 0:05:35]} 35. f4 {[%emt 0:00:00]} Rg6 {[%emt 0:00:25]} 36. Qf2 {[%emt 0:00:00]} Qf5 {[%emt 0:00:39]} 37. Ra1 {[%emt 0:00:00]} Rh6 {[%emt 0:00:54]} 38. Qf1 {[%emt 0:00:00]} Rf6 {[%emt 0:02:25]} 39. Ra7 {[%emt 0:00:00]} Rg6 {[%emt 0:01:25]} 40. Ra6 {[%emt 0:02:02]} Qg4 {[%emt 0:00:40]} 41. Qf3 {[%emt 0:00:34]} Qf5 {[%emt 0:00:13]} 1/2-1/2

[Event "Western Asian Girls Chess-ch 2023"]
[Site "Colombo"]
[Date "2023.11.30"]
[Round "1.3"]
[White "Alwis, H Sandithi Kusalya"]
[Black "Rindhiya V"]
[Result "0-1"]
[ECO "C90"]
[WhiteElo "1364"]
[BlackElo "1876"]
[Annotator "NA RC"]
[PlyCount "132"]
[EventDate "2023.11.30"]
[EventCountry "SRI"]
[SourceTitle "playchess.com"]
[Source "ChessBase"]
[SourceQuality "1"]
[TimeControl "5400+30"]

1. e4 {[%emt 0:00:02]} e5 {[%emt 0:03:10]} 2. Nf3 {[%emt 0:00:28]} Nc6 {[%emt 0:00:03]} 3. Bb5 {[%emt 0:00:18]} a6 {[%emt 0:00:05]} 4. Ba4 {[%emt 0:00:04]} Nf6 {[%emt 0:00:05]} 5. O-O {[%emt 0:00:07]} Be7 {[%emt 1:29:37]} 6. Re1 {[%emt 0:00:09]} b5 {[%emt 0:00:00]} 7. Bb3 {[%emt 0:00:05]} d6 {[%emt 0:00:00]} 8. c3 {[%emt 0:00:17]} O-O {[%emt 0:00:00]} 9. d3 {[%emt 0:01:11]} Na5 {[%emt 0:00:00]} 10. Bc2 {[%emt 0:00:15]} c5 {[%emt 0:00:00]} 11. d4 {[%emt 0:00:28]} Qc7 {[%emt 0:00:00]} 12. d5 {[%emt 0:04:44]} Bd7 {[%emt 0:00:00]} 13. h3 {[%emt 0:01:33]} c4 {[%emt 0:00:00]} 14. Nh2 {[%emt 0:01:54]} Nb7 {[%emt 0:00:00]} 15. f4 {[%emt 0:02:49]} exf4 {[%emt 0:00:00]} 16. Bxf4 {[%emt 0:00:22]} Rfe8 {[%emt 0:00:00]} 17. Qf3 {[%emt 0:06:49]} Nc5 {[%emt 0:00:00]} 18. Nd2 {[%emt 0:02:53]} a5 {[%emt 0:00:00]} 19. Nhf1 {[%emt 0:07:33]} g6 {[%emt 0:00:00]} 20. Ng3 {[%emt 0:07:17]} Qb6 {[%emt 0:00:00]} 21. Kh1 {[%emt 0:01:29]} Bc8 {[%emt 0:00:00]} 22. Rf1 {[%emt 0:07:00]} Bb7 {[%emt 0:00:00]} 23. Nf5 {[%emt 0:03:35]} gxf5 {[%emt 0:00:00]} 24. Bh6 {[%emt 0:02:23]} Kh8 {[%emt 0:00:00]} 25. Qxf5 {[%emt 0:01:22]} Ncd7 {[%emt 0:00:00]} 26. g4 {[%emt 0:05:49]} Ne5 {[%emt 0:00:00]} 27. Bg5 {[%emt 0:09:04]} Ng8 {[%emt 0:05:11]} 28. Bxe7 {[%emt 0:01:17]} Rxe7 {[%emt 0:00:05]} 29. Nf3 {[%emt 0:00:28]} Nxf3 {[%emt 0:00:52]} 30. Rxf3 {[%emt 0:00:35]} f6 {[%emt 0:00:53]} 31. Raf1 {[%emt 0:02:28]} Rae8 {[%emt 0:01:38]} 32. Qf4 {[%emt 0:03:19]} Re5 {[%emt 0:00:31]} 33. Qg3 {[%emt 0:01:04]} Qc7 {[%emt 0:00:50]} 34. Qh4 {[%emt 0:00:27]} Qg7 {[%emt 0:00:26]} 35. Qf2 {[%emt 0:01:29]} Rf8 {[%emt 0:01:25]} 36. Qb6 {[%emt 0:02:48]} Qd7 {[%emt 0:00:09]} 37. Qe3 {[%emt 0:01:12]} Bxd5 {[%emt 0:01:16]} 38. Qd4 {[%emt 0:01:54]} Bc6 {[%emt 0:00:32]} 39. Kh2 {[%emt 0:01:38]} Rfe8 {[%emt 0:00:22]} 40. Rf4 {[%emt 0:01:34]} Qe7 {[%emt 0:00:30]} 41. R1f2 {[%emt 0:01:16]} Bxe4 {[%emt 0:00:26]} 42. Bxe4 {[%emt 0:00:11]} Rxe4 {[%emt 0:00:06]} 43. Rxe4 {[%emt 0:00:12]} Qxe4 {[%emt 0:00:05]} 44. Qxd6 {[%emt 0:00:12]} Qe5+ {[%emt 0:00:08]} 45. Qxe5 {[%emt 0:00:09]} fxe5 {[%emt 0:01:10]} 46. Rf7 {[%emt 0:00:46]} e4 {[%emt 0:00:15]} 47. Kg2 {[%emt 0:00:06]} e3 {[%emt 0:00:27]} 48. Kf1 {[%emt 0:00:18]} Re5 {[%emt 0:00:17]} 49. Ke2 {[%emt 0:00:38]} Ne7 {[%emt 0:00:08]} 50. Rf8+ {[%emt 0:01:02]} Kg7 {[%emt 0:00:04]} 51. Rf1 {[%emt 0:02:25]} Nd5 {[%emt 0:00:14]} 52. Rf3 {[%emt 0:01:13]} b4 {[%emt 0:00:09]} 53. cxb4 {[%emt 0:00:13]} axb4 {[%emt 0:00:02]} 54. Rf1 {[%emt 0:00:14]} c3 {[%emt 0:00:04]} 55. bxc3 {[%emt 0:00:23]} Nxc3+ {[%emt 0:00:35]} 56. Kd3 {[%emt 0:00:15]} e2 {[%emt 0:00:05]} 57. Re1 {[%emt 0:00:17]} Rd5+ {[%emt 0:00:04]} 58. Ke3 {[%emt 0:00:11]} Rd1 {[%emt 0:00:07]} 59. Kf2 {[%emt 0:00:09]} Kf6 {[%emt 0:00:26]} 60. h4 {[%emt 0:00:57]} Rxe1 {[%emt 0:00:19]} 61. Kxe1 {[%emt 0:00:13]} Ke5 {[%emt 0:00:07]} 62. g5 {[%emt 0:00:11]} Ke4 {[%emt 0:00:22]} 63. h5 {[%emt 0:00:21]} Ke3 {[%emt 0:00:41]} 64. g6 {[%emt 0:00:06]} Nxa2 {[%emt 0:00:25]} 65. g7 {[%emt 0:00:13]} Nc1 {[%emt 0:00:04]} 66. g8=Q {[%emt 0:00:07]} Nd3# {[%emt 0:00:01]} 0-1

[Event "Western Asian Girls Chess-ch 2023"]
[Site "Colombo"]
[Date "2023.11.30"]
[Round "1.4"]
[White "Ahmed, Walijah"]
[Black "Ramanayake, Nemindi Linaya"]
[Result "1-0"]
[ECO "B12"]
[WhiteElo "1858"]
[BlackElo "1361"]
[Annotator "NA RC"]
[PlyCount "125"]
[EventDate "2023.11.30"]
[EventCountry "SRI"]
[SourceTitle "playchess.com"]
[Source "ChessBase"]
[SourceQuality "1"]
[TimeControl "5400+30"]

1. e4 {[%emt 0:00:04]} c6 {[%emt 0:00:07]} 2. d4 {[%emt 0:00:07]} d5 {[%emt 0:00:10]} 3. e5 {[%emt 0:00:28]} c5 {[%emt 0:00:12]} 4. c3 {[%emt 0:00:45]} Nc6 {[%emt 0:00:24]} 5. Be2 {[%emt 0:00:59]} cxd4 {[%emt 0:00:52]} 6. cxd4 {[%emt 0:00:34]} Bf5 {[%emt 0:00:58]} 7. Nf3 {[%emt 0:01:15]} e6 {[%emt 0:00:30]} 8. O-O {[%emt 0:00:54]} Nge7 {[%emt 0:00:46]} 9. Nbd2 {[%emt 0:05:03]} Bg4 {[%emt 0:02:51]} 10. h3 {[%emt 0:04:23]} Bxf3 {[%emt 0:01:51]} 11. Nxf3 {[%emt 0:00:08]} Nf5 {[%emt 0:00:20]} 12. Be3 {[%emt 0:09:37]} Qb6 {[%emt 0:04:24]} 13. Bd3 {[%emt 0:07:08]} Nxe3 {[%emt 0:07:56]} 14. fxe3 {[%emt 0:03:33]} Be7 {[%emt 0:02:53]} 15. Qe2 {[%emt 0:03:56]} f6 {[%emt 0:08:49]} 16. exf6 {[%emt 0:07:07]} gxf6 {[%emt 0:04:39]} 17. Rac1 {[%emt 0:05:05]} a6 {[%emt 0:03:58]} 18. a3 {[%emt 0:01:34]} O-O-O {[%emt 0:17:34]} 19. b4 {[%emt 0:05:45]} Kb8 {[%emt 0:02:13]} 20. b5 {[%emt 0:06:55]} axb5 {[%emt 0:02:30]} 21. Bxb5 {[%emt 0:00:32]} Na5 {[%emt 0:02:12]} 22. Rb1 {[%emt 0:02:21]} Qd6 {[%emt 0:02:47]} 23. Rb2 {[%emt 0:06:24]} Ka7 {[%emt 0:02:32]} 24. Rfb1 {[%emt 0:01:24]} Rb8 {[%emt 0:03:03]} 25. Bd3 {[%emt 0:04:38]} h5 {[%emt 0:03:50]} 26. Rb5 {[%emt 0:03:20]} b6 {[%emt 0:02:06]} 27. Qe1 {[%emt 0:01:38]} Nc4 {[%emt 0:05:24]} 28. a4 {[%emt 0:02:19]} Bd8 {[%emt 0:01:00]} 29. Bxc4 {[%emt 0:03:21]} dxc4 {[%emt 0:00:17]} 30. Qc3 {[%emt 0:01:32]} Qc6 {[%emt 0:03:19]} 31. d5 {[%emt 0:02:23]} exd5 {[%emt 0:00:47]} 32. Nd4 {[%emt 0:00:04]} Qd6 {[%emt 0:01:10]} 33. a5 {[%emt 0:00:17]} Bc7 {[%emt 0:00:53]} 34. Kf1 {[%emt 0:06:42]} Rhc8 {[%emt 0:02:47]} 35. axb6+ {[%emt 0:00:45]} Bxb6 {[%emt 0:00:34]} 36. Qa1+ {[%emt 0:01:09]} Kb7 {[%emt 0:00:35]} 37. Qa5 {[%emt 0:01:03]} Kc7 {[%emt 0:00:53]} 38. Rxb6 {[%emt 0:00:13]} Qxb6 {[%emt 0:00:57]} 39. Rxb6 {[%emt 0:00:40]} Rxb6 {[%emt 0:00:04]} 40. Qxd5 {[%emt 0:01:09]} Kb8 {[%emt 0:00:54]} 41. Nc2 {[%emt 0:01:22]} c3 {[%emt 0:00:52]} 42. Qxh5 {[%emt 0:01:14]} Rb1+ {[%emt 0:00:41]} 43. Ke2 {[%emt 0:00:37]} Rd8 {[%emt 0:00:32]} 44. Kf3 {[%emt 0:01:29]} Rd2 {[%emt 0:03:42]} 45. Nd4 {[%emt 0:00:11]} Rbb2 {[%emt 0:01:16]} 46. Qe8+ {[%emt 0:00:24]} Ka7 {[%emt 0:01:00]} 47. Nb5+ {[%emt 0:00:22]} Kb7 {[%emt 0:01:12]} 48. Nxc3 {[%emt 0:00:08]} Rxg2 {[%emt 0:00:30]} 49. Ne4 {[%emt 0:00:20]} Rh2 {[%emt 0:01:49]} 50. Qd7+ {[%emt 0:00:09]} Ka6 {[%emt 0:00:27]} 51. Qc6+ {[%emt 0:00:46]} Ka7 {[%emt 0:00:11]} 52. Qd7+ {[%emt 0:00:34]} Ka6 {[%emt 0:00:17]} 53. Kg4 {[%emt 0:00:20]} Rhg2+ {[%emt 0:00:42]} 54. Ng3 {[%emt 0:00:17]} Rb4+ {[%emt 0:00:21]} 55. Kf3 {[%emt 0:01:00]} Rbb2 {[%emt 0:00:12]} 56. h4 {[%emt 0:00:26]} Rbf2+ {[%emt 0:00:44]} 57. Ke4 {[%emt 0:00:07]} Ka5 {[%emt 0:01:46]} 58. Qc7+ {[%emt 0:00:26]} Ka4 {[%emt 0:00:06]} 59. h5 {[%emt 0:00:20]} Rc2 {[%emt 0:00:24]} 60. Qd6 {[%emt 0:00:24]} Rcd2 {[%emt 0:00:44]} 61. Qc6+ {[%emt 0:00:29]} Ka3 {[%emt 0:00:15]} 62. Qxf6 {[%emt 0:00:36]} Kb3 {[%emt 0:01:20]} 63. Qe5 {[%emt 0:00:35]} 1-0

[Event "Western Asian Girls Chess-ch 2023"]
[Site "Colombo"]
[Date "2023.11.30"]
[Round "1.5"]
[White "Gunasekara, K P K Hesara"]
[Black "Agajanova, Meryem"]
[Result "1/2-1/2"]
[ECO "C18"]
[WhiteElo "1352"]
[BlackElo "1854"]
[Annotator "NA RC"]
[PlyCount "218"]
[EventDate "2023.11.30"]
[EventCountry "SRI"]
[SourceTitle "playchess.com"]
[Source "ChessBase"]
[SourceQuality "1"]
[TimeControl "5400+30"]

1. e4 {[%emt 0:00:05]} e6 {[%emt 0:00:05]} 2. d4 {[%emt 0:00:28]} d5 {[%emt 0:00:08]} 3. Nc3 {[%emt 0:01:32]} Bb4 {[%emt 0:00:43]} 4. e5 {[%emt 0:01:05]} c5 {[%emt 0:00:17]} 5. a3 {[%emt 0:01:40]} Bxc3+ {[%emt 0:00:08]} 6. bxc3 {[%emt 0:00:10]} Ne7 {[%emt 1:32:09]} 7. Qg4 {[%emt 0:01:39]} Qc7 {[%emt 0:00:00]} 8. Qxg7 {[%emt 0:01:29]} Rg8 {[%emt 0:00:00]} 9. Qxh7 {[%emt 0:00:39]} cxd4 {[%emt 0:00:00]} 10. Ne2 {[%emt 0:00:22]} dxc3 {[%emt 0:00:00]} 11. h4 {[%emt 0:01:51]} Nbc6 {[%emt 0:00:00]} 12. f4 {[%emt 0:03:22]} Bd7 {[%emt 0:00:00] The main line 12...Bd7 scores better than 12...d4.} 13. h5 {[%emt 0:03:00]} O-O-O {[%emt 0:00:00]} 14. Qd3 {[%emt 0:06:55]} d4 {[%emt 0:00:00]} 15. Rb1 {[%emt 0:03:57]} Nf5 {[%emt 0:00:00]} 16. Rg1 {[%emt 0:05:19]} Nh6 {[%emt 0:00:00]} 17. Nxd4 {[%emt 0:17:32]} Be8 {[%emt 0:00:00]} 18. Nb5 {[%emt 0:01:02] [#]} Qb6 $146 {[%emt 0:00:00]} ({Predecessor:} 18... Rxd3 19. Nxc7 Rdg3 20. Nb5 Nf5 21. Bd3 Ncd4 22. Bxf5 Nf3+ 23. Kf2 Bxb5 24. Rxb5 Nxg1 {1-0 Donoso Diaz,S (2111)-Fuentes Parra,V (2083) CHI-ch U20 Maipu 2017 (3.3)}) 19. Be3 {[%emt 0:11:23]} Rxd3 {[%emt 0:00:00]} 20. Bxb6 {[%emt 0:00:29]} Rd2 {[%emt 0:00:00]} 21. Be3 {[%emt 0:07:50]} Rxc2 {[%emt 0:00:00]} 22. Nd6+ {[%emt 0:02:40]} Kd8 {[%emt 0:00:00]} 23. Rxb7 {[%emt 0:03:58]} Ng4 {[%emt 0:00:00]} 24. Bc5 {[%emt 0:05:38]} Rc1+ {[%emt 0:05:59]} 25. Ke2 {[%emt 0:00:50]} Nh2 {[%emt 0:00:33]} 26. Be3 {[%emt 0:02:09]} Ra1 {[%emt 0:01:40]} 27. Rb3 {[%emt 0:02:42]} Nxf1 {[%emt 0:01:13]} 28. Rxf1 {[%emt 0:00:50]} Ra2+ {[%emt 0:00:33]} 29. Kd3 {[%emt 0:01:25]} Rgxg2 {[%emt 0:00:36]} 30. Rxc3 {[%emt 0:00:39]} Ne7 {[%emt 0:00:35]} 31. Rfc1 {[%emt 0:01:41]} Bc6 {[%emt 0:00:41]} 32. Nxf7+ {[%emt 0:00:53]} Kd7 {[%emt 0:00:00]} 33. Nd6 {[%emt 0:02:25]} Rh2 {[%emt 0:00:39]} 34. h6 {[%emt 0:01:24]} Nd5 {[%emt 0:00:50]} 35. Rxc6 {[%emt 0:00:18]} Rxa3+ {[%emt 0:00:02]} 36. R6c3 {[%emt 0:01:18]} Nxc3 {[%emt 0:00:23]} 37. Rxc3 {[%emt 0:00:07]} Rxc3+ {[%emt 0:00:21]} 38. Kxc3 {[%emt 0:00:05]} Rxh6 {[%emt 0:00:07]} 39. Bxa7 {[%emt 0:00:25]} Rh1 {[%emt 0:01:25]} 40. Kd3 {[%emt 0:00:31]} Kc6 {[%emt 0:00:37]} 41. Ke4 {[%emt 0:00:18]} Re1+ {[%emt 0:00:29]} 42. Be3 {[%emt 0:00:40]} Rf1 {[%emt 0:00:38]} 43. f5 {[%emt 0:01:13]} exf5+ {[%emt 0:00:05]} 44. Nxf5 {[%emt 0:00:06]} Kd7 {[%emt 0:01:34]} 45. Nd4 {[%emt 0:00:30]} Re1 {[%emt 0:00:00]} 46. Kf4 {[%emt 0:00:43]} Ra1 {[%emt 0:00:26]} 47. Kf5 {[%emt 0:00:39]} Ra5 {[%emt 0:00:33]} 48. Bf4 {[%emt 0:00:45]} Ke8 {[%emt 0:00:24]} 49. Kf6 {[%emt 0:00:37]} Ra4 {[%emt 0:00:22]} 50. Be3 {[%emt 0:00:40]} Ra3 {[%emt 0:00:34]} 51. Bg5 {[%emt 0:00:19]} Rd3 {[%emt 0:00:19]} 52. Nf5 {[%emt 0:00:33]} Rf3 {[%emt 0:00:37]} 53. e6 {[%emt 0:00:13]} Rf1 {[%emt 0:00:23]} 54. e7 {[%emt 0:00:28]} Kd7 {[%emt 0:01:22]} 55. Kg6 {[%emt 0:00:57]} Re1 {[%emt 0:00:00]} 56. Kf7 {[%emt 0:00:53]} Re5 {[%emt 0:00:20]} 57. Bf6 {[%emt 0:00:33]} Re6 {[%emt 0:00:31]} 58. Ng7 {[%emt 0:00:21]} Re4 {[%emt 0:00:36]} 59. e8=Q+ {[%emt 0:01:08]} Rxe8 {[%emt 0:00:05]} 60. Nxe8 {[%emt 0:00:04]} Kc6 {[%emt 0:00:12]} 61. Ke6 {[%emt 0:00:19]} Kc5 {[%emt 0:00:05]} 62. Nd6 {[%emt 0:00:20]} Kc6 {[%emt 0:00:26]} 63. Bd4 {[%emt 0:00:15]} Kc7 {[%emt 0:00:12]} 64. Bc5 {[%emt 0:00:54]} Kc6 {[%emt 0:00:53]} 65. Bb4 {[%emt 0:00:11]} Kc7 {[%emt 0:00:11]} 66. Nf5 {[%emt 0:00:44]} Kd8 {[%emt 0:01:50]} 67. Ba5+ {[%emt 0:00:46]} Kc8 {[%emt 0:00:29]} 68. Kd6 {[%emt 0:00:20]} Kb7 {[%emt 0:00:06]} 69. Bd8 {[%emt 0:00:29]} Kc8 {[%emt 0:00:20]} 70. Bc7 {[%emt 0:00:18]} Kb7 {[%emt 0:00:04]} 71. Ne7 {[%emt 0:00:24]} Ka6 {[%emt 0:00:27]} 72. Kc6 {[%emt 0:00:08]} Ka7 {[%emt 0:00:03]} 73. Nc8+ {[%emt 0:00:47]} Ka6 {[%emt 0:00:53]} 74. Nd6 {[%emt 0:00:27]} Ka7 {[%emt 0:00:05]} 75. Kb5 {[%emt 0:00:50]} Ka8 {[%emt 0:00:10]} 76. Bb6 {[%emt 0:00:48]} Kb8 {[%emt 0:00:05]} 77. Kc6 {[%emt 0:00:44]} Ka8 {[%emt 0:00:01]} 78. Bc7 {[%emt 0:01:40]} Ka7 {[%emt 0:00:02]} 79. Kb5 {[%emt 0:00:17]} Ka8 {[%emt 0:00:02]} 80. Kc6 $2 {[%emt 0:01:38]} (80. Ne8 {mates} Kb7 81. Bg3 Ka8 82. Nd6 Kb8 83. Nf5+ Kb7 84. Be5 Ka8 85. Bf6) 80... Ka7 {[%emt 0:00:04]} 81. Bd8 {[%emt 0:01:14]} Ka6 {[%emt 0:01:38]} 82. Bf6 {[%emt 0:01:15]} Ka7 {[%emt 0:00:35]} 83. Be5 {[%emt 0:00:56]} Ka8 {[%emt 0:00:44]} 84. Ne8 {[%emt 0:00:37]} Ka7 {[%emt 0:00:11]} 85. Kc7 {[%emt 0:00:32]} Ka6 {[%emt 0:00:44]} 86. Bd4 {[%emt 0:00:07]} Kb5 {[%emt 0:03:56]} 87. Nd6+ {[%emt 0:00:07]} Ka6 {[%emt 0:00:00]} 88. Kc6 {[%emt 0:00:14]} Ka5 {[%emt 0:00:00]} 89. Kb7 {[%emt 0:00:12]} Kb4 {[%emt 0:00:00]} 90. Kb6 {[%emt 0:00:16]} Kb3 {[%emt 0:00:00]} 91. Kb5 {[%emt 0:00:21]} Kc2 {[%emt 0:00:03]} 92. Kc4 {[%emt 0:00:05]} Kd2 {[%emt 0:00:05]} 93. Ne4+ {[%emt 0:00:19]} Ke2 {[%emt 0:00:10]} 94. Bf2 {[%emt 0:01:19]} Kf3 {[%emt 0:00:20]} 95. Kd4 {[%emt 0:00:16]} Kf4 {[%emt 0:00:24]} 96. Nd2 {[%emt 0:00:27]} Kg4 {[%emt 0:00:14]} 97. Ke4 {[%emt 0:00:14]} Kh3 {[%emt 0:00:13]} 98. Kf3 {[%emt 0:00:30]} Kh2 {[%emt 0:00:01]} 99. Ne4 {[%emt 0:00:14]} Kh3 {[%emt 0:02:32]} 100. Ng5+ {[%emt 0:00:27]} Kh2 {[%emt 0:00:02]} 101. Bg3+ {[%emt 0:00:11]} Kh1 {[%emt 0:00:32]} 102. Ne4 {[%emt 0:00:46]} Kg1 {[%emt 0:00:04]} 103. Nf2 {[%emt 0:00:13]} Kf1 {[%emt 0:00:01]} 104. Bh2 {[%emt 0:00:41]} Ke1 {[%emt 0:00:01]} 105. Bg1 {[%emt 0:00:30]} Kd2 {[%emt 0:00:29]} 106. Ne4+ {[%emt 0:00:21]} Kd3 {[%emt 0:00:10]} 107. Be3 {[%emt 0:00:42]} Kc4 {[%emt 0:05:09]} 108. Nd2+ {[%emt 0:00:38]} Kd5 {[%emt 0:00:00]} 109. Kf4 {[%emt 0:00:25]} Ke6 {[%emt 0:01:00]} 1/2-1/2

[Event "Western Asian Girls Chess-ch 2023"]
[Site "Colombo"]
[Date "2023.11.30"]
[Round "1.6"]
[White "Shohradova, Lala"]
[Black "Piyumanthi, M Sayumi Vimansa"]
[Result "1-0"]
[ECO "E11"]
[WhiteElo "1846"]
[BlackElo "1328"]
[Annotator "NA RC"]
[PlyCount "85"]
[EventDate "2023.11.30"]
[EventCountry "SRI"]
[SourceTitle "playchess.com"]
[Source "ChessBase"]
[SourceQuality "1"]
[TimeControl "5400+30"]

1. d4 {[%emt 0:00:01]} Nf6 {[%emt 0:00:07]} 2. c4 {[%emt 0:00:04]} e6 {[%emt 0:00:05]} 3. Nf3 {[%emt 0:00:08]} Bb4+ {[%emt 0:00:39]} 4. Bd2 {[%emt 0:00:26]} Qe7 {[%emt 0:00:06]} 5. g3 {[%emt 0:00:53]} Ne4 {[%emt 0:04:27]} 6. a3 {[%emt 0:01:53]} Bxd2+ {[%emt 0:00:49]} 7. Nbxd2 {[%emt 0:00:02]} Nxd2 {[%emt 0:02:52]} 8. Qxd2 {[%emt 0:00:12]} f5 {[%emt 0:00:46]} 9. Bg2 {[%emt 0:00:31]} d6 {[%emt 0:01:17]} 10. O-O {[%emt 0:02:09]} O-O {[%emt 0:01:13]} 11. Rac1 {[%emt 0:01:10]} Nd7 {[%emt 0:02:52]} 12. b4 {[%emt 1:29:01]} Nf6 {[%emt 1:21:17]} 13. Qc2 {[%emt 0:00:00]} e5 {[%emt 0:00:00]} 14. dxe5 {[%emt 0:00:00]} dxe5 {[%emt 0:00:00]} 15. Rfd1 {[%emt 0:00:00]} e4 {[%emt 0:00:00]} 16. Nd4 {[%emt 0:00:00]} c5 {[%emt 0:00:00]} 17. bxc5 {[%emt 0:00:00]} Qxc5 {[%emt 0:00:00]} 18. Qb2 {[%emt 0:00:00]} a6 {[%emt 0:00:00]} 19. e3 {[%emt 0:00:00]} Rb8 {[%emt 0:00:00]} 20. Bf1 {[%emt 0:00:00]} Ng4 {[%emt 0:00:00]} 21. Nb3 {[%emt 0:00:00]} Qe7 {[%emt 0:00:00]} 22. Be2 {[%emt 0:00:00]} Ne5 {[%emt 0:05:00]} 23. Rd5 {[%emt 0:00:00]} Nc6 {[%emt 0:00:00]} 24. Rcd1 {[%emt 0:00:00]} g5 {[%emt 0:00:00]} 25. c5 {[%emt 0:00:00]} Qg7 {[%emt 0:00:00]} 26. Qxg7+ {[%emt 0:00:00]} Kxg7 {[%emt 0:02:00]} 27. Rd6 {[%emt 0:00:00]} Rf6 {[%emt 0:00:00]} 28. Rxf6 {[%emt 0:00:00]} Kxf6 {[%emt 0:01:00]} 29. Rd6+ Be6 {[%emt 0:00:00]} 30. Bc4 {[%emt 0:00:00]} Re8 {[%emt 0:00:00]} 31. Bxa6 {[%emt 0:01:16]} bxa6 {[%emt 0:00:52]} 32. Rxc6 {[%emt 0:00:01]} Ke5 {[%emt 0:00:24]} 33. Nd4 {[%emt 0:00:39]} Bc4 {[%emt 0:00:12]} 34. Rd6 {[%emt 0:01:26]} Rc8 {[%emt 0:00:57]} 35. f4+ {[%emt 0:00:58]} exf3 {[%emt 0:00:11]} 36. Nxf3+ {[%emt 0:00:13]} Ke4 {[%emt 0:01:24]} 37. Nd2+ {[%emt 0:00:53]} Kxe3 {[%emt 0:00:00]} 38. Nxc4+ {[%emt 0:00:04]} Kf3 {[%emt 0:00:00]} 39. c6 {[%emt 0:00:31]} Re8 {[%emt 0:00:00]} 40. Rd3+ {[%emt 0:00:08]} Kg4 {[%emt 0:00:19]} 41. c7 {[%emt 0:00:07]} Rc8 {[%emt 0:00:31]} 42. Rc3 {[%emt 0:00:13]} Kh3 {[%emt 0:00:21]} 43. Nd6 {[%emt 0:00:15]} 1-0